fUST/lending_fUST_20250201
["ID","MTS","AMOUNT","RATE_DAILY","PERIOD"]
[351148289,1738355436782,-500.0,0.00017537,2]
[351148290,1738355436791,-500.0,0.00017537,2]
[351148291,1738355436800,-500.0,0.00017537,2]
[351148292,1738355436811,-500.0,0.00017537,2]
[351148293,1738355436821,-500.0,0.00017537,2]
[351148294,1738355436830,-500.0,0.00017537,2]
[351148295,1738355436843,-500.0,0.00017537,2]
[351148296,1738355436852,-500.0,0.00017537,2]
[351148297,1738355436861,-500.0,0.00017537,2]
[351148298,1738355436870,-559.91687658,0.00017551,2]
[351148299,1738355436879,-500.0,0.00017553,2]
[351148300,1738355436889,-500.0,0.00017553,2]
[351148301,1738355436899,-502.21051507,0.00017553,2]
[351148302,1738355436908,-503.08834129,0.00017553,2]
[351148303,1738355436918,-151.0,0.00017553,2]
[351148304,1738355436927,-151.0,0.00017553,2]
[351148305,1738355436937,-151.0,0.00017553,2]
[351148306,1738355436947,-500.0,0.00017651,2]
[351148307,1738355436957,-500.0,0.00017651,2]
[351148308,1738355436966,-500.0,0.00017651,2]
[351148309,1738355436976,-500.0,0.00017668,2]
[351148310,1738355436986,-500.0,0.00017668,2]
[351148311,1738355436996,-500.0,0.00017671,2]
[351148312,1738355437005,-754.35,0.00017671,2]
[351148313,1738355437015,-500.0,0.00017672,2]
[351148314,1738355437025,-500.0,0.00017672,2]
[351148315,1738355437034,-500.0,0.00017672,2]
[351148316,1738355437044,-500.0,0.00017672,2]
[351148317,1738355437054,-500.0,0.00017672,2]
[351148318,1738355437063,-500.0,0.00017672,2]
[351148319,1738355437073,-500.0,0.00017672,2]
[351148320,1738355437085,-500.0,0.00017672,2]
[351148321,1738355437095,-500.0,0.00017672,2]
[351148322,1738355437105,-500.0,0.00017672,2]
[351148323,1738355437114,-500.0,0.00017672,2]
[351148324,1738355437124,-500.0,0.00017672,2]
[351148325,1738355437134,-500.0,0.00017672,2]
[351148326,1738355437143,-500.0,0.00017672,2]
[351148327,1738355437152,-640.56,0.00017672,2]
[351148328,1738355437162,-151.0,0.00017672,2]
[351148329,1738355437171,-519.66,0.00017672,2]
[351148330,1738355437181,-500.0,0.00017672,2]
[351148331,1738355437190,-500.0,0.00017672,2]
[351148332,1738355437199,-500.0,0.00017672,2]
[351148333,1738355437208,-500.0,0.00017672,2]
[351148334,1738355437217,-151.0,0.00017672,2]
[351148335,1738355437227,-500.0,0.00017672,2]
[351148336,1738355437236,-151.0,0.00017672,2]
[351148337,1738355437245,-185.733639,0.00017672,2]
[351148338,1738355437254,-500.0,0.00017672,2]
[351148339,1738355437264,-185.733639,0.00017672,2]
[351148340,1738355437273,-500.0,0.00017672,2]
[351148341,1738355437283,-500.0,0.00017672,2]
[351148342,1738355437293,-571.59,0.00017672,2]
[351148343,1738355437303,-500.0,0.00017672,2]
[351148344,1738355437312,-363.13728067,0.00017672,2]
[351148345,1738355437321,-546.31,0.00017672,2]
[351148346,1738355437331,-848.27,0.00017672,2]
[351148347,1738355437344,-793.44,0.00017672,2]
[351148348,1738355437354,-500.0,0.00017672,2]
[351148349,1738355437364,-500.0,0.00017672,2]
[351148350,1738355437373,-500.0,0.00017672,2]
[351148351,1738355437384,-500.0,0.00017672,2]
[351148352,1738355437393,-500.0,0.00017672,2]
[351148353,1738355437402,-800.64,0.00017672,2]
[351148354,1738355437412,-500.0,0.00017672,2]
[351148355,1738355437421,-500.0,0.00017672,2]
[351148356,1738355437430,-500.0,0.00017672,2]
[351148357,1738355437439,-500.0,0.00017672,2]
[351148358,1738355437448,-151.0,0.00017672,2]
[351148359,1738355437458,-2583.75,0.00017672,2]
[351148360,1738355437467,-688.18,0.00017672,2]
[351148362,1738355437476,-500.0,0.00017672,2]
[351148363,1738355437486,-500.0,0.00017673,2]
[351148365,1738355437496,-500.0,0.00017673,2]
[351148366,1738355437505,-500.0,0.00017673,2]
[351148367,1738355437514,-500.0,0.00017673,2]
[351148368,1738355437523,-151.0,0.00017673,2]
[351148369,1738355437532,-500.0,0.00017673,2]
[351148370,1738355437542,-500.0,0.00017673,2]
[351148371,1738355437550,-151.0,0.00017673,2]
[351148372,1738355437559,-500.0,0.00017673,2]
[351148373,1738355437569,-500.0,0.00017673,2]
[351148374,1738355437578,-500.0,0.00017673,2]
[351148375,1738355437590,-151.0,0.00017673,2]
[351148376,1738355437599,-500.0,0.00017673,2]
[351148377,1738355437608,-500.0,0.00017673,2]
[351148378,1738355437618,-216.37,0.00017673,2]
[351148379,1738355437627,-500.0,0.00017673,2]
[351148380,1738355437636,-500.0,0.00017673,2]
[351148381,1738355437646,-151.0,0.00017673,2]
[351148382,1738355437655,-500.0,0.00017673,2]
[351148383,1738355437664,-500.0,0.00017673,2]
[351148384,1738355437674,-151.0,0.00017673,2]
[351148385,1738355437683,-500.0,0.00017673,2]
[351148386,1738355437691,-500.0,0.00017673,2]
[351148387,1738355437700,-500.0,0.00017673,2]
[351148388,1738355437710,-500.0,0.00017673,2]
[351148389,1738355437719,-500.0,0.00017673,2]
[351148390,1738355437729,-372.3421,0.00017673,2]
[351148391,1738355437738,-372.3421,0.00017673,2]
[351148392,1738355437747,-251.449428,0.00017673,2]
[351148393,1738355437756,-500.0,0.00017673,2]
[351148394,1738355437765,-151.0,0.00017673,2]
[351148395,1738355437777,-500.0,0.00017673,2]
[351148396,1738355437786,-500.0,0.00017673,2]
[351148397,1738355437795,-500.0,0.00017673,2]
[351148398,1738355437805,-151.0,0.00017673,2]
[351148399,1738355437817,-500.0,0.00017673,2]
[351148400,1738355437826,-151.0,0.00017673,2]
[351148401,1738355437836,-500.0,0.00017673,2]
[351148402,1738355437846,-2948.34,0.00017673,2]
[351148403,1738355437856,-500.0,0.00017673,2]
[351148405,1738355437865,-323.8941146,0.00017673,2]
[351148407,1738355437874,-500.0,0.00017673,2]
[351148409,1738355437885,-500.0,0.00017673,2]
[351148411,1738355437895,-3595.47,0.00017673,2]
[351148413,1738355437904,-500.0,0.00017673,2]
[351148414,1738355437914,-500.0,0.00017673,2]
[351148416,1738355437923,-500.0,0.00017673,2]
[351148417,1738355437932,-214.33450288,0.00017673,2]
[351148419,1738355438339,-500.0,0.00017672,2]
[351148420,1738355438348,-256.29074482,0.00017673,2]
[351148421,1738355438360,-99.8947523,0.00017673,2]
[351148422,1738355438369,-500.0,0.00017673,2]
[351148423,1738355438378,-151.0,0.00017673,2]
[351148424,1738355438388,-151.0,0.00017673,2]
[351148425,1738355438397,-500.0,0.00017673,2]
[351148426,1738355438407,-223.86094105,0.00017673,2]
[351148427,1738355438416,-500.0,0.00017673,2]
[351148428,1738355438425,-500.0,0.00017673,2]
[351148429,1738355438435,-500.0,0.00017674,2]
[351148430,1738355438444,-500.0,0.00017674,2]
[351148431,1738355438453,-500.0,0.00017674,2]
[351148432,1738355438463,-500.0,0.00017674,2]
[351148433,1738355438472,-500.0,0.00017674,2]
[351148434,1738355438481,-500.0,0.00017674,2]
[351148435,1738355438491,-500.0,0.00017674,2]
[351148436,1738355438500,-500.0,0.00017674,2]
[351148437,1738355438509,-500.0,0.00017674,2]
[351148438,1738355438518,-500.0,0.00017674,2]
[351148439,1738355438527,-500.0,0.00017808,2]
[351148440,1738355438536,-500.0,0.00017808,2]
[351148441,1738355438546,-754.35,0.00017808,2]
[351148442,1738355438556,-530.13532791,0.00017808,2]
[351148443,1738355438565,-500.0,0.00017809,2]
[351148444,1738355438574,-500.0,0.00017809,2]
[351148445,1738355438585,-500.0,0.00017809,2]
[351148446,1738355438594,-500.0,0.00017809,2]
[351148447,1738355438604,-500.0,0.00017809,2]
[351148448,1738355438612,-500.0,0.00017809,2]
[351148449,1738355438622,-500.0,0.00017809,2]
[351148450,1738355438632,-500.0,0.00017809,2]
[351148451,1738355438642,-500.0,0.00017809,2]
[351148452,1738355438651,-500.0,0.00017809,2]
[351148453,1738355438662,-500.0,0.00017809,2]
[351148454,1738355438672,-500.0,0.00017809,2]
[351148455,1738355438682,-640.56,0.00017809,2]
[351148456,1738355438691,-519.66,0.00017809,2]
[351148457,1738355438701,-500.0,0.00017809,2]
[351148458,1738355438710,-500.0,0.00017809,2]
[351148459,1738355438719,-500.0,0.00017809,2]
[351148460,1738355438729,-500.0,0.00017809,2]
[351148461,1738355438738,-500.0,0.00017809,2]
[351148462,1738355438748,-500.0,0.00017809,2]
[351148463,1738355438757,-500.0,0.00017809,2]
[351148464,1738355438767,-500.0,0.00017809,2]
[351148465,1738355438776,-151.0,0.00017809,2]
[351148466,1738355438786,-571.59,0.00017809,2]
[351148467,1738355438795,-500.0,0.00017809,2]
[351148468,1738355438806,-546.31,0.00017809,2]
[351148469,1738355438818,-848.27,0.00017809,2]
[351148470,1738355438827,-793.44,0.00017809,2]
[351148471,1738355438838,-153.015441,0.00017809,2]
[351148472,1738355438849,-500.0,0.00017809,2]
[351148473,1738355438859,-500.0,0.00017809,2]
[351148474,1738355438868,-500.0,0.00017809,2]
[351148475,1738355438877,-500.0,0.00017809,2]
[351148476,1738355438887,-500.0,0.00017809,2]
[351148477,1738355438896,-800.64,0.00017809,2]
[351148478,1738355438905,-500.0,0.00017809,2]
[351148479,1738355438914,-500.0,0.00017809,2]
[351148480,1738355438923,-500.0,0.00017809,2]
[351148481,1738355438932,-500.0,0.00017809,2]
[351148482,1738355438941,-151.0,0.00017809,2]
[351148483,1738355438950,-2583.75,0.00017809,2]
[351148484,1738355438959,-688.18,0.00017809,2]
[351148485,1738355438968,-500.0,0.00017809,2]
[351148486,1738355438978,-500.0,0.00017809,2]
[351148487,1738355438987,-181.25010921,0.0001781,2]
[351148488,1738355438997,-500.0,0.0001781,2]
[351148489,1738355439006,-500.0,0.0001781,2]
[351148490,1738355439015,-512.03802103,0.0001781,2]
[351148491,1738355439024,-500.0,0.0001781,2]
[351148492,1738355439034,-500.0,0.0001781,2]
[351148493,1738355439043,-500.0,0.0001781,2]
[351148494,1738355439052,-500.0,0.0001781,2]
[351148495,1738355439062,-500.0,0.0001781,2]
[351148496,1738355439071,-500.0,0.0001781,2]
[351148497,1738355439080,-500.0,0.0001781,2]
[351148498,1738355439092,-500.0,0.0001781,2]
[351148499,1738355439101,-477.99369715,0.0001781,2]
[351148500,1738355439111,-500.0,0.0001781,2]
[351148501,1738355439119,-500.0,0.0001781,2]
[351148502,1738355439129,-500.0,0.0001781,2]
[351148503,1738355439138,-500.0,0.0001781,2]
[351148504,1738355439147,-500.0,0.0001781,2]
[351148505,1738355439157,-500.0,0.0001781,2]
[351148506,1738355439166,-500.0,0.0001781,2]
[351148507,1738355439175,-500.0,0.0001781,2]
[351148508,1738355439184,-487.11,0.0001781,2]
[351148509,1738355439194,-151.0,0.0001781,2]
[351148510,1738355439203,-151.0,0.0001781,2]
[351148511,1738355439213,-500.0,0.0001781,2]
[351148512,1738355439222,-151.0,0.0001781,2]
[351148513,1738355439231,-500.0,0.0001781,2]
[351148514,1738355439241,-151.0,0.0001781,2]
[351148515,1738355439250,-2948.34,0.0001781,2]
[351148516,1738355439259,-500.0,0.0001781,2]
[351148517,1738355439269,-151.0,0.0001781,2]
[351148518,1738355439278,-185.733639,0.0001781,2]
[351148519,1738355439288,-185.733639,0.0001781,2]
[351148520,1738355439297,-500.0,0.0001781,2]
[351148521,1738355439306,-500.0,0.0001781,2]
[351148522,1738355439316,-3595.47,0.0001781,2]
[351148523,1738355439326,-500.0,0.0001781,2]
[351148524,1738355439337,-500.0,0.0001781,2]
[351148525,1738355439347,-500.0,0.0001781,2]
[351148526,1738355439356,-570.52,0.0001781,2]
[351148527,1738355439366,-454.85880738,0.0001781,2]
[351148528,1738355439380,-45.14119262,0.0001781,2]
[351148529,1738355439389,-500.0,0.0001781,2]
[351148530,1738355439398,-500.0,0.0001781,2]
[351148531,1738355439408,-500.0,0.0001781,2]
[351148532,1738355439417,-500.0,0.00017811,2]
[351148533,1738355439426,-319.13349087,0.00017811,2]
[351148535,1738355439439,-180.86650913,0.00017811,2]
[351148537,1738355439449,-500.0,0.00017811,2]
[351148538,1738355439458,-500.0,0.00017811,2]
[351148539,1738355439467,-216.13349087,0.00017811,2]
[351148540,1738355439479,-283.86650913,0.00017811,2]
[351148541,1738355439489,-500.0,0.00017811,2]
[351148542,1738355439501,-500.0,0.00017811,2]
[351148543,1738355439510,-500.0,0.00017811,2]
[351148544,1738355439519,-151.0,0.00017811,2]
[351148545,1738355439529,-500.0,0.00017811,2]
[351148546,1738355439539,-372.3421,0.00017811,2]
[351148547,1738355439548,-372.3421,0.00017811,2]
[351148548,1738355439558,-549.71208941,0.00017813,2]
[351148549,1738355439567,-151.0,0.00017813,2]
[351148552,1738355439576,-151.0,0.00017813,2]
[351148554,1738355439586,-151.0,0.00017813,2]
[351148557,1738355439595,-210.85684746,0.00017887,2]
[351148559,1738355439605,-500.0,0.00017945,2]
[351148561,1738355439615,-754.35,0.00017945,2]
[351148562,1738355439624,-500.0,0.00017946,2]
[351148563,1738355439634,-500.0,0.00017946,2]
[351148564,1738355439644,-500.0,0.00017946,2]
[351148565,1738355439653,-399.71553186,0.00017946,2]
[351148572,1738355440191,-500.0,0.00017124,2]
[351148573,1738355440200,-500.0,0.00017261,2]
[351148574,1738355440210,-500.0,0.00017398,2]
[351148575,1738355440219,-500.0,0.00017535,2]
[351148576,1738355440229,-100.28446814,0.00017946,2]
[351148577,1738355440238,-500.0,0.00017946,2]
[351148578,1738355440247,-500.0,0.00017946,2]
[351148579,1738355440257,-500.0,0.00017946,2]
[351148580,1738355440266,-500.0,0.00017946,2]
[351148581,1738355440275,-500.0,0.00017946,2]
[351148582,1738355440284,-485.67053186,0.00017946,2]
[351148583,1738355440296,-14.32946814,0.00017946,2]
[351148584,1738355440305,-500.0,0.00017946,2]
[351148585,1738355440315,-500.0,0.00017946,2]
[351148586,1738355440324,-640.56,0.00017946,2]
[351148587,1738355440333,-519.66,0.00017946,2]
[351148588,1738355440344,-500.0,0.00017946,2]
[351148589,1738355440353,-500.0,0.00017946,2]
[351148590,1738355440363,-500.0,0.00017946,2]
[351148591,1738355440372,-473.84853186,0.00017946,2]
[351148614,1738355443203,-500.0,0.00017125,2]
[351148615,1738355443213,-315.12,0.00017262,2]
[351148616,1738355443224,-184.88,0.00017262,2]
[351148617,1738355443234,-90.0232964,0.00017399,2]
[351148618,1738355443245,-409.9767036,0.00017399,2]
[351148619,1738355443255,-500.0,0.00017536,2]
[351148620,1738355443263,-500.0,0.00017672,2]
[351148621,1738355443273,-500.0,0.00017809,2]
[351148622,1738355443283,-26.15146814,0.00017946,2]
[351148623,1738355443292,-500.0,0.00017946,2]
[351148624,1738355443301,-500.0,0.00017946,2]
[351148625,1738355443311,-500.0,0.00017946,2]
[351148626,1738355443320,-500.0,0.00017946,2]
[351148627,1738355443329,-151.0,0.00017946,2]
[351148628,1738355443341,-571.59,0.00017946,2]
[351148629,1738355443350,-500.0,0.00017946,2]
[351148630,1738355443359,-546.31,0.00017946,2]
[351148631,1738355443450,-848.27,0.00017946,2]
[351148632,1738355443473,-793.44,0.00017946,2]
[351148633,1738355443482,-500.0,0.00017946,2]
[351148634,1738355443491,-500.0,0.00017946,2]
[351148635,1738355443501,-500.0,0.00017946,2]
[351148636,1738355443510,-500.0,0.00017946,2]
[351148637,1738355443519,-500.0,0.00017946,2]
[351148638,1738355443528,-800.64,0.00017946,2]
[351148639,1738355443537,-500.0,0.00017946,2]
[351148640,1738355443546,-500.0,0.00017946,2]
[351148641,1738355443555,-500.0,0.00017946,2]
[351148642,1738355443564,-500.0,0.00017946,2]
[351148643,1738355443573,-164.849016,0.00017946,2]
[351148644,1738355443582,-2583.75,0.00017946,2]
[351148645,1738355443592,-688.18,0.00017946,2]
[351148646,1738355443602,-500.0,0.00017946,2]
[351148647,1738355443610,-500.0,0.00017946,2]
[351148648,1738355443620,-500.0,0.00017946,2]
[351148649,1738355443629,-500.0,0.00017947,2]
[351148650,1738355443638,-500.0,0.00017947,2]
[351148651,1738355443647,-500.0,0.00017947,2]
[351148652,1738355443656,-500.0,0.00017947,2]
[351148653,1738355443665,-500.0,0.00017947,2]
[351148654,1738355443674,-500.0,0.00017947,2]
[351148655,1738355443683,-500.0,0.00017947,2]
[351148656,1738355443692,-500.0,0.00017947,2]
[351148657,1738355443701,-500.0,0.00017947,2]
[351148658,1738355443711,-500.0,0.00017947,2]
[351148659,1738355443720,-151.0,0.00017947,2]
[351148660,1738355443729,-500.0,0.00017947,2]
[351148661,1738355443738,-500.0,0.00017947,2]
[351148662,1738355443747,-500.0,0.00017947,2]
[351148663,1738355443758,-500.0,0.00017947,2]
[351148664,1738355443767,-500.0,0.00017947,2]
[351148665,1738355443776,-500.0,0.00017947,2]
[351148666,1738355443785,-500.0,0.00017947,2]
[351148667,1738355443794,-220.467281,0.00017947,2]
[351148668,1738355443804,-151.0,0.00017947,2]
[351148669,1738355443817,-466.41889608,0.00017947,2]
[351148670,1738355443830,-33.58110392,0.00017947,2]
[351148671,1738355443839,-151.0,0.00017947,2]
[351148672,1738355443848,-500.0,0.00017947,2]
[351148673,1738355443858,-2948.34,0.00017947,2]
[351148674,1738355443867,-500.0,0.00017947,2]
[351148675,1738355443877,-151.0,0.00017947,2]
[351148676,1738355443888,-185.733639,0.00017947,2]
[351148677,1738355443897,-185.733639,0.00017947,2]
[351148678,1738355443906,-500.0,0.00017947,2]
[351148679,1738355443915,-471.93981033,0.00017947,2]
[351148680,1738355443926,-28.06018967,0.00017947,2]
[351148681,1738355443936,-3595.47,0.00017947,2]
[351148682,1738355443945,-500.0,0.00017947,2]
[351148683,1738355443954,-500.0,0.00017947,2]
[351148684,1738355443963,-500.0,0.00017947,2]
[351148685,1738355443973,-570.52,0.00017947,2]
[351148686,1738355443983,-500.0,0.00017947,2]
[351148687,1738355443992,-500.0,0.00017947,2]
[351148688,1738355444000,-500.0,0.00017947,2]
[351148689,1738355444009,-500.0,0.00017947,2]
[351148690,1738355444018,-500.0,0.00017948,2]
[351148691,1738355444029,-500.0,0.00017948,2]
[351148692,1738355444039,-500.0,0.00017948,2]
[351148693,1738355444047,-500.0,0.00017948,2]
[351148694,1738355444057,-500.0,0.00017948,2]
[351148695,1738355444066,-500.0,0.00017948,2]
[351148696,1738355444075,-500.0,0.00017948,2]
[351148697,1738355444085,-500.0,0.00017948,2]
[351148698,1738355444096,-500.0,0.00017948,2]
[351148699,1738355444105,-500.0,0.00018082,2]
[351148700,1738355444114,-754.35,0.00018082,2]
[351148701,1738355444123,-500.0,0.00018083,2]
[351148702,1738355444133,-500.0,0.00018083,2]
[351148703,1738355444142,-500.0,0.00018083,2]
[351148704,1738355444152,-500.0,0.00018083,2]
[351148705,1738355444162,-500.0,0.00018083,2]
[351148706,1738355444172,-500.0,0.00018083,2]
[351148707,1738355444181,-500.0,0.00018083,2]
[351148708,1738355444189,-500.0,0.00018083,2]
[351148709,1738355444199,-500.0,0.00018083,2]
[351148710,1738355444208,-500.0,0.00018083,2]
[351148711,1738355444217,-500.0,0.00018083,2]
[351148712,1738355444227,-500.0,0.00018083,2]
[351148713,1738355444237,-640.56,0.00018083,2]
[351148714,1738355444246,-500.0,0.00018083,2]
[351148715,1738355444255,-519.66,0.00018083,2]
[351148716,1738355444265,-500.0,0.00018083,2]
[351148717,1738355444274,-500.0,0.00018083,2]
[351148718,1738355444284,-293.20230705,0.00018083,2]
[351148758,1738355446347,-31.21987548,0.00017262,2]
[351148759,1738355448000,-468.78012452,0.00017262,2]
[351148760,1738355448010,-500.0,0.00017262,2]
[351148761,1738355448019,-500.0,0.00017399,2]
[351148762,1738355448029,-31.21987548,0.00017399,2]
[351148763,1738355448335,-468.78012452,0.00017399,2]
[351148764,1738355448349,-500.0,0.00017536,2]
[351148765,1738355448359,-206.79769295,0.00018083,2]
[351148766,1738355448368,-500.0,0.00018083,2]
[351148767,1738355448378,-500.0,0.00018083,2]
[351148768,1738355448388,-571.59,0.00018083,2]
[351148769,1738355448398,-500.0,0.00018083,2]
[351148770,1738355448408,-546.31,0.00018083,2]
[351148771,1738355448418,-848.27,0.00018083,2]
[351148772,1738355448428,-793.44,0.00018083,2]
[351148773,1738355448438,-500.0,0.00018083,2]
[351148774,1738355448448,-500.0,0.00018083,2]
[351148775,1738355448458,-800.64,0.00018083,2]
[351148776,1738355448468,-500.0,0.00018083,2]
[351148777,1738355448477,-267.204688,0.00018083,2]
[351148778,1738355448487,-500.0,0.00018083,2]
[351148779,1738355448496,-2583.75,0.00018083,2]
[351148780,1738355448506,-688.18,0.00018083,2]
[351148781,1738355448516,-500.0,0.00018083,2]
[351148782,1738355448525,-500.0,0.00018083,2]
[351148783,1738355448534,-500.0,0.00018084,2]
[351148784,1738355448543,-500.0,0.00018084,2]
[351148785,1738355448553,-500.0,0.00018084,2]
[351148786,1738355448563,-500.0,0.00018084,2]
[351148787,1738355448572,-500.0,0.00018084,2]
[351148788,1738355448582,-369.14850899,0.00018084,2]
[351148789,1738355448594,-500.0,0.00018084,2]
[351148790,1738355448604,-500.0,0.00018084,2]
[351148791,1738355448613,-500.0,0.00018084,2]
[351148792,1738355448623,-274.21,0.00018084,2]
[351148793,1738355448632,-500.0,0.00018084,2]
[351148794,1738355448641,-372.3421,0.00018084,2]
[351148795,1738355448650,-372.3421,0.00018084,2]
[351148796,1738355448660,-500.0,0.00018084,2]
[351148797,1738355448669,-500.0,0.00018084,2]
[351148798,1738355448679,-500.0,0.00018084,2]
[351148799,1738355448688,-362.82,0.00018084,2]
[351148800,1738355448698,-2948.34,0.00018084,2]
[351148801,1738355448707,-500.0,0.00018084,2]
[351148802,1738355448716,-151.0,0.00018084,2]
[351148803,1738355448726,-500.0,0.00018084,2]
[351148804,1738355448736,-3595.47,0.00018084,2]
[351148805,1738355448745,-500.0,0.00018084,2]
[351148806,1738355448754,-500.0,0.00018084,2]
[351148807,1738355448764,-500.0,0.00018084,2]
[351148808,1738355448773,-570.52,0.00018084,2]
[351148809,1738355448782,-500.0,0.00018084,2]
[351148810,1738355448792,-500.0,0.00018084,2]
[351148811,1738355448802,-500.0,0.00018084,2]
[351148812,1738355448815,-500.0,0.00018085,2]
[351148813,1738355448824,-500.0,0.00018085,2]
[351148814,1738355448834,-500.0,0.00018085,2]
[351148815,1738355448844,-500.0,0.00018085,2]
[351148816,1738355448854,-500.0,0.00018085,2]
[351148817,1738355448863,-498.73688493,0.00018085,2]
[351148818,1738355448873,-500.0,0.00018085,2]
[351148819,1738355448884,-106.0141221,0.00018085,2]
[351148820,1738355448897,-393.9858779,0.00018085,2]
[351148821,1738355448907,-151.839952,0.00018085,2]
[351148822,1738355448916,-151.0,0.00018101,2]
[351148823,1738355448925,-185.733639,0.00018101,2]
[351148824,1738355448934,-185.733639,0.00018101,2]
[351148825,1738355448944,-1000.0,0.00018199,2]
[351148826,1738355448953,-1000.05137806,0.00018199,2]
[351148827,1738355448963,-1000.0,0.00018199,2]
[351148828,1738355448972,-500.0,0.0001821,2]
[351148829,1738355448983,-518.15563231,0.00018216,2]
[351148830,1738355448992,-500.0,0.00018219,2]
[351148831,1738355449002,-754.35,0.00018219,2]
[351148832,1738355449011,-266.0,0.0001822,2]
[351148833,1738355449020,-500.0,0.0001822,2]
[351148834,1738355449030,-500.0,0.0001822,2]
[351148835,1738355449039,-500.0,0.0001822,2]
[351148836,1738355449048,-273.92,0.0001822,2]
[351148837,1738355449058,-640.56,0.0001822,2]
[351148838,1738355449067,-500.0,0.0001822,2]
[351148839,1738355449077,-519.66,0.0001822,2]
[351148840,1738355449087,-500.0,0.0001822,2]
[351148841,1738355449099,-500.0,0.0001822,2]
[351148842,1738355449108,-500.0,0.0001822,2]
[351148843,1738355449117,-500.0,0.0001822,2]
[351148844,1738355449126,-571.59,0.0001822,2]
[351148845,1738355449136,-500.0,0.0001822,2]
[351148846,1738355449145,-546.31,0.0001822,2]
[351148847,1738355449154,-848.27,0.0001822,2]
[351148848,1738355449163,-793.44,0.0001822,2]
[351148849,1738355449173,-500.0,0.0001822,2]
[351148850,1738355449182,-500.0,0.0001822,2]
[351148851,1738355449192,-800.64,0.0001822,2]
[351148852,1738355449201,-500.0,0.0001822,2]
[351148853,1738355449211,-500.0,0.0001822,2]
[351148854,1738355449224,-2583.75,0.0001822,2]
[351148855,1738355449324,-688.18,0.0001822,2]
[351148856,1738355449334,-500.0,0.0001822,2]
[351148857,1738355449346,-500.0,0.0001822,2]
[351148858,1738355449356,-233.36,0.00018221,2]
[351148859,1738355449366,-500.0,0.00018221,2]
[351148860,1738355449376,-500.0,0.00018221,2]
[351148861,1738355449386,-500.0,0.00018221,2]
[351148862,1738355449396,-500.0,0.00018221,2]
[351148863,1738355449406,-500.0,0.00018221,2]
[351148864,1738355449417,-500.0,0.00018221,2]
[351148865,1738355449427,-451.28119019,0.00018221,2]
[351148866,1738355449437,-151.0,0.00018221,2]
[351148867,1738355449446,-262.896168,0.00018221,2]
[351148868,1738355449456,-2948.34,0.00018221,2]
[351148869,1738355449466,-195.51491368,0.00018221,2]
[351148870,1738355449476,-185.733639,0.00018221,2]
[351148871,1738355449485,-185.733639,0.00018221,2]
[351148872,1738355449495,-583.12,0.00018221,2]
[351148873,1738355449505,-151.0,0.00018221,2]